bitfinex/quotes_BTCUSD_20250723
["timestamp","ask_amount","ask_price","bid_price","bid_amount"]
[1753301175431,1.30928361,118490.0,118480.0,0.00389125]
[1753301175677,1.32428361,118490.0,118480.0,0.00389125]
[1753301176534,1.32428361,118490.0,118480.0,0.00289125]
[1753301176760,1.32428361,118490.0,118480.0,0.00089125]
[1753301177007,1.23980631,118490.0,118480.0,0.00089125]
[1753301177231,1.05359631,118490.0,118480.0,0.40168874]
[1753301177452,0.90359631,118490.0,118480.0,0.40168874]
[1753301177666,1.05359631,118490.0,118480.0,0.40168874]
[1753301178949,0.56366729,118490.0,118480.0,0.76135623]
[1753301179146,0.80324361,118490.0,118480.0,0.36454874]
[1753301179347,0.80324361,118490.0,118480.0,0.00189125]
[1753301179600,0.80324361,118490.0,118480.0,0.36454874]
[1753301180021,0.80003361,118490.0,118480.0,0.36669874]
[1753301180288,0.71359631,118490.0,118480.0,0.40168874]
[1753301181994,0.57915631,118490.0,118480.0,0.40168874]
[1753301182206,0.71359631,118490.0,118480.0,0.40168874]
[1753301184214,0.71555631,118490.0,118480.0,0.35168874]
[1753301184419,0.71876631,118490.0,118480.0,0.35168874]
[1753301184654,0.80324361,118490.0,118480.0,0.35168874]
[1753301187423,0.80324361,118490.0,118460.0,0.03183]
[1753301187637,0.33570051,118470.0,118460.0,0.00153]
[1753301187842,0.47010051,118470.0,118460.0,0.00334]
[1753301188054,0.47010051,118470.0,118460.0,0.03504]
[1753301188254,0.51955316,118470.0,118460.0,0.03504]
[1753301188481,0.55457781,118470.0,118460.0,0.03391]
[1753301188802,0.55457781,118470.0,118460.0,0.03591]
[1753301188996,0.70778781,118470.0,118460.0,0.36686749]
[1753301189970,0.70778781,118470.0,118460.0,0.36886749]
[1753301190182,0.70974781,118470.0,118460.0,0.36886749]
[1753301190395,0.79422511,118470.0,118460.0,0.36886749]
[1753301190589,0.79422511,118470.0,118460.0,0.00621]
[1753301190996,0.79422511,118470.0,118460.0,0.36886749]
[1753301193226,0.70457781,118470.0,118460.0,0.36886749]
[1753301194532,0.70781781,118470.0,118460.0,0.36886749]
[1753301195388,0.70995781,118470.0,118460.0,0.36886749]
[1753301197707,0.70995781,118470.0,118460.0,0.00621]
[1753301197925,0.70995781,118470.0,118460.0,0.36886749]
[1753301198134,0.79443511,118470.0,118460.0,0.36886749]
[1753301201044,0.70991781,118470.0,118460.0,0.36886749]
[1753301201691,0.70991781,118470.0,118460.0,0.00621]
[1753301201887,0.70991781,118470.0,118460.0,0.36886749]
[1753301203005,0.57555781,118470.0,118460.0,0.36886749]
[1753301203211,0.57017781,118470.0,118460.0,0.40126749]
[1753301203421,0.57017781,118470.0,118460.0,0.93388834]
[1753301203422,0.87006051,118470.0,118460.0,0.93388834]
[1753301203582,0.87006051,118470.0,118460.0,0.76505498]
[1753301203785,0.73570051,118470.0,118460.0,0.93388834]
[1753301204020,0.87006051,118470.0,118460.0,0.94233]
[1753301204238,0.86161992,118470.0,118460.0,0.40239749]
[1753301204861,0.72725992,118470.0,118460.0,0.40239749]
[1753301205050,0.86161992,118470.0,118460.0,0.40239749]
[1753301206238,0.89027135,118470.0,118460.0,0.40239749]
[1753301206875,0.89023135,118470.0,118460.0,0.40239749]
[1753301207307,0.86157992,118470.0,118460.0,0.40239749]
[1753301207881,0.86157992,118470.0,118460.0,0.57123085]
[1753301208083,0.86157992,118470.0,118460.0,0.41083915]
[1753301208260,0.86157992,118470.0,118460.0,0.40239749]
[1753301209196,0.87002051,118470.0,118460.0,0.40239749]
[1753301209405,0.56688097,118470.0,118460.0,1.02558897]
[1753301209605,0.54276038,118470.0,118460.0,1.04247151]
[1753301209726,0.54276038,118470.0,118460.0,1.03403035]
[1753301209928,0.60258177,118470.0,118460.0,0.95077145]
[1753301210137,0.59414139,118470.0,118460.0,0.94233]
[1753301210350,0.59414139,118470.0,118460.0,0.95077159]
[1753301210567,0.5857008,118470.0,118460.0,0.03974]
[1753301210783,0.7357008,118470.0,118460.0,0.53671749]
[1753301210994,0.73746995,118470.0,118460.0,0.53671749]
[1753301211246,0.73746995,118470.0,118460.0,0.70555085]
[1753301211464,0.86158006,118470.0,118460.0,0.72243382]
[1753301211679,0.8700208,118470.0,118460.0,0.73087513]
[1753301211885,0.8700208,118470.0,118460.0,0.72243382]
[1753301212086,0.8700208,118470.0,118460.0,1.08509131]
[1753301212301,0.8700208,118470.0,118460.0,1.101974]
[1753301212578,0.70120126,118470.0,118460.0,1.11041524]
[1753301212784,0.88690206,118470.0,118460.0,1.11041488]
[1753301212986,0.71808295,118470.0,118460.0,1.11041488]
[1753301213204,0.57532164,118470.0,118460.0,1.11041488]
[1753301213405,0.70120083,118470.0,118460.0,1.11041488]
[1753301213662,0.7096415,118470.0,118460.0,0.97609488]
[1753301213942,0.71808231,118470.0,118460.0,0.97609488]
[1753301214197,0.59220319,118470.0,118460.0,0.97609488]
[1753301214436,0.72648319,118470.0,118460.0,0.97609488]
[1753301214870,0.72648319,118470.0,118460.0,1.11037488]
[1753301215094,0.3096015,118470.0,118460.0,1.11037488]
[1753301215307,0.31804231,118470.0,118460.0,1.11037488]
[1753301215549,0.89530237,118470.0,118460.0,1.11037488]
[1753301215762,0.89530237,118470.0,118460.0,1.10193372]
[1753301215974,0.89530237,118470.0,118460.0,0.96765372]
[1753301216185,0.86998087,118470.0,118460.0,0.94233]
[1753301216458,0.73570087,118470.0,118460.0,0.94233]
[1753301216670,0.73570087,118470.0,118460.0,0.95921283]
[1753301216906,0.56688176,118470.0,118460.0,0.97609523]
[1753301217497,0.57532171,118470.0,118460.0,0.97609523]
[1753301217745,0.68428,118470.0,118460.0,0.97609523]
[1753301217973,0.4,118470.0,118460.0,0.97609523]
[1753301218185,0.14271967,118480.0,118470.0,0.22534111]
[1753301218418,0.1595995,118480.0,118470.0,0.95246609]
[1753301218660,0.42531943,118480.0,118470.0,0.95359609]
[1753301218872,0.56803953,118480.0,118470.0,0.95359609]
[1753301219093,0.56803953,118480.0,118470.0,0.95246609]
[1753301219521,0.5764797,118480.0,118470.0,0.95246609]
[1753301219736,0.56803946,118480.0,118470.0,0.95359609]
[1753301219951,0.54271967,118480.0,118470.0,0.95359609]
[1753301220197,0.55959929,118480.0,118470.0,0.95359609]
[1753301220620,0.17363689,118520.0,118510.0,0.02531366]
[1753301220826,0.17363689,118520.0,118510.0,0.59637087]
[1753301220827,0.15,118520.0,118510.0,0.59637087]
[1753301221076,0.59404427,118530.0,118520.0,0.1856226]
[1753301221288,0.55115307,118530.0,118520.0,0.92962164]
[1753301221562,0.71988672,118530.0,118520.0,0.91274751]
[1753301221777,0.71988672,118530.0,118520.0,0.73556237]
[1753301221778,0.71145026,118530.0,118520.0,0.73556237]
[1753301221956,0.71159736,118530.0,118520.0,0.74262498]
[1753301222170,0.57731736,118530.0,118520.0,0.74262498]
[1753301222388,0.71159736,118530.0,118520.0,0.72712498]
[1753301222608,0.71483736,118530.0,118520.0,0.72712498]
[1753301222844,0.71697736,118530.0,118520.0,0.72712498]
[1753301223970,0.32718514,118520.0,118510.0,0.001]
[1753301224239,0.36414514,118520.0,118510.0,0.001]
[1753301224483,0.50302514,118520.0,118510.0,0.36365749]
[1753301224723,0.32721461,118500.0,118490.0,0.22560732]
[1753301224965,0.4747735,118500.0,118490.0,0.58163701]
[1753301225212,0.4747735,118500.0,118490.0,0.59851549]
[1753301225676,0.4747735,118500.0,118490.0,0.59007632]
[1753301225890,0.4747735,118500.0,118490.0,0.59851556]
[1753301226116,0.4747735,118500.0,118490.0,0.60695473]
[1753301226355,0.4747735,118500.0,118490.0,0.59851556]
[1753301226855,0.4747735,118500.0,118490.0,0.58163701]
[1753301227059,0.45789637,118500.0,118490.0,0.57319763]
[1753301227521,0.45789637,118500.0,118490.0,0.58463708]
[1753301227748,0.45789637,118500.0,118490.0,0.40296749]
[1753301228215,0.45789637,118500.0,118490.0,0.37146749]
[1753301229481,0.45789637,118500.0,118490.0,0.54869755]
[1753301229699,0.85789637,118500.0,118490.0,0.54869755]
[1753301230333,0.85789637,118500.0,118490.0,0.37146749]
[1753301230771,0.85789637,118500.0,118490.0,0.5402581]
[1753301230984,0.85789637,118500.0,118490.0,0.54869748]
[1753301231388,0.85789637,118500.0,118490.0,0.54869763]
[1753301231605,0.85789637,118500.0,118490.0,0.55713701]
[1753301231819,0.85789637,118500.0,118490.0,0.56557632]
[1753301232029,0.45789637,118500.0,118490.0,0.37990702]
[1753301232479,0.85789637,118500.0,118490.0,0.37146749]
[1753301234089,0.86633511,118500.0,118490.0,0.54869763]
[1753301234522,0.87159511,118500.0,118490.0,0.54869763]
[1753301235350,0.86315637,118500.0,118490.0,0.37990702]
[1753301235554,0.86315637,118500.0,118490.0,0.37146749]
[1753301235944,0.94763367,118500.0,118490.0,0.00881]
[1753301236140,0.94763367,118500.0,118490.0,0.37146749]
[1753301236554,0.54763367,118500.0,118490.0,0.5402581]
[1753301236719,0.54763367,118500.0,118490.0,0.55713694]
[1753301236947,0.29679839,118500.0,118490.0,0.60521521]
[1753301237147,0.33055258,118500.0,118490.0,0.60521521]
[1753301237593,0.49932944,118500.0,118490.0,0.60521521]
[1753301237795,0.49089105,118500.0,118490.0,0.59677618]
[1753301237996,0.49089105,118500.0,118490.0,0.60521535]
[1753301238227,0.32211468,118500.0,118490.0,0.61365445]
[1753301238457,0.32211468,118500.0,118490.0,0.61365395]
[1753301238649,0.1668767,118500.0,118490.0,0.61365395]
[1753301238884,0.1753153,118500.0,118490.0,0.61478395]
[1753301239275,0.18375397,118500.0,118490.0,0.61478395]
[1753301239488,0.1668767,118500.0,118490.0,0.61365395]
[1753301239690,0.15843824,118500.0,118490.0,0.61478395]
[1753301239893,0.16687663,118500.0,118490.0,0.61478395]
[1753301240035,0.18375376,118500.0,118490.0,0.61478395]
[1753301240237,0.17531509,118500.0,118490.0,0.61365395]
[1753301240439,0.18375376,118500.0,118490.0,0.61365395]
[1753301241219,0.1921925,118500.0,118490.0,0.61365395]
[1753301241550,0.17531509,118500.0,118490.0,0.61365395]
[1753301241753,0.18375362,118500.0,118490.0,0.61365395]
[1753301242016,0.57531509,118500.0,118490.0,0.61365395]
[1753301242238,0.58375369,118500.0,118490.0,0.61365395]
[1753301243464,0.58375362,118500.0,118490.0,0.61365395]
[1753301243652,0.59219229,118500.0,118490.0,0.61365395]
[1753301244883,0.83700772,118500.0,118490.0,0.59677632]
[1753301245084,0.84018772,118500.0,118490.0,0.57401549]
[1753301245713,0.83174933,118500.0,118490.0,0.56557639]
[1753301245923,0.83382933,118500.0,118490.0,0.56557639]
[1753301246148,0.83382933,118500.0,118490.0,0.57401556]
[1753301246923,0.43382933,118500.0,118490.0,0.57401556]
[1753301247176,0.34935203,118500.0,118490.0,0.57401556]
[1753301247480,0.74727203,118500.0,118490.0,0.57401549]
[1753301247714,0.5869344,118500.0,118490.0,0.58245452]
[1753301247963,0.75571077,118500.0,118490.0,0.58245452]
[1753301248238,0.76414958,118500.0,118490.0,0.58245452]
[1753301248480,0.75571112,118500.0,118490.0,0.57401563]
[1753301248723,0.75571112,118500.0,118490.0,0.5824548]
[1753301249565,0.75571112,118500.0,118490.0,0.5824543]
[1753301249853,0.75571112,118500.0,118490.0,0.57401527]
[1753301250072,0.35571112,118500.0,118490.0,0.57401527]
[1753301250598,0.5668772,118500.0,118490.0,0.58245437]
[1753301250870,0.1668772,118500.0,118490.0,0.58245395]
[1753301251687,0.31263538,118500.0,118490.0,0.61315395]
[1753301251906,0.03679967,118530.0,118520.0,0.18562217]
[1753301252138,0.15732003,118530.0,118520.0,0.91093729]
[1753301252357,0.15732003,118530.0,118520.0,0.90431019]
[1753301252586,0.73657029,118530.0,118520.0,0.90431019]
[1753301252798,0.7610339,118530.0,118520.0,0.89406287]
[1753301253010,0.7610339,118530.0,118520.0,0.90250026]
[1753301253226,0.6239139,118530.0,118520.0,0.72531498]
[1753301253438,0.6239139,118530.0,118510.0,0.19406325]
[1753301253439,0.18562232,118520.0,118510.0,0.19406325]
[1753301253664,0.21276964,118520.0,118510.0,0.19406325]
[1753301253877,0.23199964,118520.0,118510.0,0.1856255]
[1753301254090,0.24043703,118520.0,118510.0,0.20250107]
[1753301254307,0.24043703,118520.0,118510.0,0.19406332]
[1753301254509,0.23199985,118520.0,118510.0,0.19406332]
[1753301254737,0.23199985,118520.0,118510.0,0.55672081]
[1753301254956,0.05481428,118520.0,118510.0,0.56515856]
[1753301255207,0.0469511,118520.0,118510.0,0.93625365]
[1753301256221,0.0469511,118520.0,118510.0,0.93725365]
[1753301256720,0.0469511,118520.0,118510.0,0.93925365]
[1753301256932,0.02191385,118520.0,118510.0,0.93925365]
[1753301257150,0.02191385,118520.0,118510.0,0.94106365]
[1753301257626,0.03035103,118520.0,118510.0,0.94106365]
[1753301257842,0.03035103,118520.0,118510.0,1.02554095]
[1753301258049,0.0472256,118520.0,118510.0,0.94106365]
[1753301259464,0.03035103,118520.0,118510.0,0.94106365]
[1753301259928,0.03878828,118520.0,118510.0,0.94106365]
[1753301261376,0.02191385,118520.0,118510.0,0.94106365]
[1753301261597,0.50764559,118530.0,118520.0,0.19405942]
[1753301261797,0.50764559,118530.0,118520.0,0.90431026]
[1753301261995,0.50975559,118530.0,118520.0,0.90250026]
[1753301262558,0.5013192,118530.0,118520.0,0.72531498]
[1753301262762,0.16874789,118520.0,118510.0,0.17918733]
[1753301262950,0.58222514,118520.0,118510.0,0.55672038]
[1753301263076,0.59742514,118520.0,118510.0,0.53984482]
[1753301263280,0.61352514,118520.0,118510.0,0.53984482]
[1753301263771,0.60508789,118520.0,118510.0,0.36265749]
[1753301264185,0.60508789,118520.0,118510.0,0.36465749]
[1753301264416,0.60508789,118520.0,118510.0,0.36565749]
[1753301264879,0.68956519,118520.0,118510.0,0.36565749]
[1753301267913,0.74188789,118520.0,118510.0,0.90732513]
[1753301268148,0.70554789,118520.0,118510.0,0.90732513]
[1753301268347,0.4,118520.0,118510.0,0.90732513]
[1753301268555,0.5621511,118520.0,118510.0,0.95530055]
[1753301268755,0.57058842,118520.0,118510.0,0.94686295]
[1753301268977,0.73933631,118520.0,118510.0,0.94686295]
[1753301269402,0.73044389,118520.0,118510.0,0.93842513]
[1753301269619,0.33089949,118520.0,118510.0,0.90732513]
[1753301269825,0.31695521,118520.0,118510.0,0.73012498]
[1753301270039,0.31062789,118520.0,118510.0,0.73012498]
[1753301270306,0.30558789,118520.0,118510.0,0.90732506]
[1753301270557,0.32246231,118520.0,118510.0,0.91576288]
[1753301271641,0.32246231,118520.0,118510.0,0.92420063]
[1753301272302,0.32246231,118520.0,118510.0,0.91576288]
[1753301272745,0.31906521,118520.0,118510.0,0.73012498]
[1753301272967,0.31062789,118520.0,118510.0,0.73012498]
[1753301273177,0.34212789,118520.0,118510.0,0.72831498]
[1753301274790,0.32652789,118520.0,118510.0,0.72831498]
[1753301275152,0.32652789,118520.0,118510.0,0.72706081]
[1753301275370,0.34152789,118520.0,118510.0,0.36440332]
[1753301275561,0.37651716,118520.0,118510.0,0.36440332]
[1753301276376,0.34152789,118520.0,118510.0,0.36440332]
[1753301276582,0.42600519,118520.0,118510.0,0.36440332]
[1753301277054,0.76600519,118520.0,118510.0,0.00174583]
[1753301277386,0.78345421,118520.0,118510.0,0.00174583]
[1753301277602,0.78345421,118520.0,118510.0,0.36440332]
[1753301278077,0.78345421,118520.0,118510.0,0.36365749]
[1753301278337,0.78345421,118520.0,118510.0,0.36265749]
[1753301278562,0.78341421,118520.0,118510.0,0.36265749]
[1753301280067,0.19410812,118490.0,118480.0,0.54834211]
[1753301280315,0.16215751,118490.0,118480.0,0.55859185]
[1753301280540,0.55371813,118490.0,118480.0,0.57389185]
[1753301280758,0.73094812,118490.0,118480.0,0.56545211]
[1753301281176,0.73094812,118490.0,118480.0,0.55015211]
[1753301281393,0.56215751,118490.0,118480.0,0.9198096]
[1753301281563,0.73094812,118490.0,118480.0,0.9198096]
[1753301281764,0.56215751,118490.0,118480.0,0.92824941]
[1753301281959,0.57059696,118490.0,118480.0,0.93668915]
[1753301282537,0.73938814,118490.0,118480.0,0.92824941]
[1753301282955,0.562158,118490.0,118480.0,0.92824941]
[1753301283170,0.73938814,118490.0,118480.0,0.93668915]
[1753301283769,0.15371855,118490.0,118480.0,0.93668915]
[1753301284461,0.32250916,118490.0,118480.0,0.92824941]
[1753301284680,0.15371855,118490.0,118480.0,0.93668915]
[1753301285112,0.162158,118490.0,118480.0,0.93668915]
[1753301285328,0.15371855,118490.0,118480.0,0.93668915]
[1753301286188,0.15371813,118490.0,118480.0,0.96888915]
[1753301286410,0.16215751,118490.0,118480.0,0.97001915]
[1753301286641,0.16215744,118490.0,118480.0,0.96888915]
[1753301287288,0.01687813,118490.0,118480.0,0.96888915]
[1753301287505,0.0168772,118500.0,118490.0,0.19410833]
[1753301287725,0.33893964,118500.0,118490.0,0.55857582]
[1753301287997,0.55324586,118500.0,118490.0,0.55857582]
[1753301288227,0.56168453,118500.0,118490.0,0.58967582]
[1753301288454,0.73889964,118500.0,118490.0,0.58123679]
[1753301288665,0.73889964,118500.0,118490.0,0.57397596]
[1753301288878,0.55324586,118500.0,118490.0,0.57397596]
[1753301289096,0.5616846,118500.0,118490.0,0.55013679]
[1753301289324,0.55324586,118500.0,118490.0,0.55013679]
[1753301289565,0.56168453,118500.0,118490.0,0.56057582]
[1753301289779,0.56168453,118500.0,118490.0,0.56257582]
[1753301290418,0.56469453,118500.0,118490.0,0.56257582]
[1753301290840,0.54781733,118500.0,118490.0,0.56257582]
[1753301291048,0.55324579,118500.0,118490.0,0.56257582]
[1753301291259,0.53616901,118500.0,118490.0,0.57887582]
[1753301291467,0.54460725,118500.0,118490.0,0.59530582]
[1753301291678,0.56148417,118500.0,118490.0,0.59530582]
[1753301291889,0.55304564,118500.0,118490.0,0.59417582]
[1753301292320,0.53616901,118500.0,118490.0,0.59417582]
[1753301292530,0.54460718,118500.0,118490.0,0.59530582]
[1753301292986,0.54460718,118500.0,118490.0,0.59417582]
[1753301293427,0.56148417,118500.0,118490.0,0.23151833]
[1753301293643,0.56148417,118500.0,118490.0,0.59417582]
[1753301293862,0.5614841,118500.0,118490.0,0.59417582]
[1753301294569,0.74713788,118500.0,118490.0,0.56257582]
[1753301295031,0.74370971,118500.0,118490.0,0.55413679]
[1753301295253,0.57493334,118500.0,118490.0,0.57101492]
[1753301295488,0.75214852,118500.0,118490.0,0.57101492]
[1753301295708,0.74371013,118500.0,118490.0,0.56257589]
[1753301296256,0.55805586,118500.0,118490.0,0.57101492]
[1753301296460,0.55605586,118500.0,118490.0,0.57101492]
[1753301296889,0.56449453,118500.0,118490.0,0.57101492]
[1753301297336,0.55605586,118500.0,118490.0,0.57101492]
[1753301297475,0.5644946,118500.0,118490.0,0.57101492]
[1753301298058,0.5644946,118500.0,118490.0,0.20835743]
[1753301298266,0.56449453,118500.0,118490.0,0.57101492]
[1753301298901,0.55605586,118500.0,118490.0,0.57101492]
[1753301299112,0.55605579,118500.0,118490.0,0.57101492]
[1753301299331,0.55605586,118500.0,118490.0,0.57101492]
[1753301299552,0.15605586,118500.0,118490.0,0.57101492]
[1753301300162,0.14761733,118500.0,118490.0,0.57101492]
[1753301300366,0.15605579,118500.0,118490.0,0.57101492]
[1753301300573,0.14761733,118500.0,118490.0,0.57101492]
[1753301300810,0.14460733,118500.0,118490.0,0.57101492]
[1753301301019,0.15304579,118500.0,118490.0,0.57101492]
[1753301301838,0.16148432,118500.0,118490.0,0.57101492]
[1753301302698,0.15304579,118500.0,118490.0,0.57101492]
[1753301302908,0.14460733,118500.0,118490.0,0.57101492]
[1753301303167,0.15304579,118500.0,118490.0,0.57101492]
[1753301303383,0.13616901,118500.0,118490.0,0.57101492]
[1753301303621,0.13616901,118500.0,118490.0,0.60321492]
[1753301303850,4.901e-05,118500.0,118490.0,0.96700241]
[1753301304081,0.13544901,118500.0,118490.0,1.18687971]
[1753301305285,0.13544901,118500.0,118490.0,0.46156473]
[1753301305511,0.13544901,118500.0,118490.0,0.82422222]
[1753301305978,0.00848718,118500.0,118490.0,0.68769222]
[1753301306207,0.00848718,118500.0,118490.0,0.79093222]
[1753301306424,0.0169255,118500.0,118490.0,0.82343222]
[1753301307079,0.00848718,118500.0,118490.0,0.82343222]
[1753301307551,0.0169255,118500.0,118490.0,0.82343222]
[1753301307777,0.0169255,118500.0,118490.0,0.79093222]
[1753301308005,0.0169255,118500.0,118490.0,0.65549222]
[1753301308242,0.00848718,118500.0,118490.0,0.65549222]
[1753301308468,0.0169255,118500.0,118490.0,0.65549222]
[1753301309356,0.02536403,118500.0,118490.0,0.65549222]
[1753301309516,0.0338027,118500.0,118490.0,0.65549222]
[1753301309761,0.0338027,118500.0,118490.0,0.54569741]
[1753301309762,0.19915132,118500.0,118490.0,0.54569741]
[1753301309971,0.21477412,118500.0,118490.0,0.36665749]
[1753301310406,0.63658913,118500.0,118490.0,0.004]
[1753301310627,0.63658913,118500.0,118490.0,0.36665749]
[1753301310869,0.99403815,118500.0,118490.0,0.004]
[1753301311066,0.99403815,118500.0,118490.0,0.36665749]
[1753301311405,0.99403815,118500.0,118490.0,0.36465749]
[1753301312038,0.99403815,118500.0,118490.0,0.36565749]
[1753301312175,0.99403815,118500.0,118490.0,0.36365749]
[1753301312377,0.99403815,118500.0,118490.0,0.36465749]
[1753301312826,0.94214044,118500.0,118490.0,0.36465749]
[1753301313024,0.94214044,118500.0,118490.0,0.36365749]
[1753301313226,0.94214044,118500.0,118490.0,0.36265749]
[1753301313857,0.94214044,118500.0,118470.0,0.00844095]
[1753301313858,0.17724503,118480.0,118470.0,0.00844095]
[1753301314067,0.00844067,118470.0,118460.0,0.21158507]
[1753301314299,0.20781206,118470.0,118460.0,0.57429078]
[1753301314498,0.23991242,118470.0,118460.0,0.57429078]
[1753301314658,0.23991242,118470.0,118460.0,0.56584933]
[1753301314659,0.23147175,118470.0,118460.0,0.56584933]
[1753301314855,0.22303094,118470.0,118460.0,0.57429092]
[1753301315090,0.22303094,118470.0,118460.0,0.57829092]
[1753301315328,0.21459006,118470.0,118460.0,0.57829092]
[1753301315541,0.21459006,118470.0,118460.0,0.58673237]
[1753301316166,0.21459006,118470.0,118460.0,0.59517375]
[1753301316591,0.21459006,118470.0,118460.0,0.60661506]
[1753301317246,0.21459006,118470.0,118460.0,0.58129092]
[1753301317479,0.61459006,118470.0,118460.0,0.0074]
[1753301317716,0.84906736,118470.0,118460.0,0.37005749]
[1753301317923,0.44906736,118470.0,118460.0,0.37005749]
[1753301318273,0.44906736,118470.0,118460.0,0.36705749]
[1753301318520,0.44906736,118470.0,118460.0,0.36305749]
[1753301318732,0.44906736,118470.0,118460.0,0.0024]
[1753301318944,0.44906736,118470.0,118460.0,0.36505749]
[1753301324489,0.44906736,118470.0,118460.0,0.0024]
[1753301324723,0.61651638,118470.0,118460.0,0.0024]
[1753301324957,0.61651638,118470.0,118460.0,0.36505749]
[1753301325602,0.61651638,118470.0,118460.0,0.36405749]
[1753301325800,0.70099368,118470.0,118460.0,0.36405749]
[1753301326439,0.70099368,118470.0,118460.0,0.0014]
[1753301326655,0.70099368,118470.0,118460.0,0.36405749]
[1753301326879,0.70099368,118470.0,118460.0,0.36305749]
[1753301328644,0.61651638,118470.0,118460.0,0.36305749]
[1753301328881,0.75171638,118470.0,118460.0,0.36305749]
[1753301331217,0.59906736,118470.0,118460.0,0.36305749]
[1753301331415,0.73414736,118470.0,118460.0,0.36305749]
[1753301332964,0.58286736,118470.0,118460.0,0.36305749]
[1753301333207,0.40200736,118470.0,118460.0,0.36305749]
[1753301333415,0.40200736,118470.0,118460.0,0.36486749]
[1753301333838,0.40200736,118470.0,118460.0,0.54214251]
[1753301334055,0.00523,118470.0,118460.0,0.54214244]
[1753301334284,0.81639486,118480.0,118470.0,0.18570094]
[1753301334513,0.20258184,118470.0,118460.0,0.21861619]
[1753301334729,0.20258191,118470.0,118460.0,0.22042633]
[1753301334952,0.20258191,118470.0,118460.0,0.22886771]
[1753301335167,0.20258234,118470.0,118460.0,0.22042633]
[1753301335589,0.20258234,118470.0,118460.0,0.58308382]
[1753301335801,0.20258234,118470.0,118460.0,0.5915252]
[1753301336232,0.20258234,118470.0,118460.0,0.58408382]
[1753301336411,0.20258234,118470.0,118460.0,0.57564237]
[1753301336589,0.19414175,118470.0,118460.0,0.57564237]
[1753301336796,0.66330486,118480.0,118470.0,0.00844095]
[1753301337008,0.63789967,118480.0,118470.0,0.96431713]
[1753301337180,0.65477965,118480.0,118470.0,0.96220704]
[1753301337385,0.64633955,118480.0,118470.0,0.97064706]
[1753301337583,0.83202453,118480.0,118470.0,0.94532585]
[1753301337907,0.66321967,118480.0,118470.0,0.93814756]
[1753301338479,0.6547795,118480.0,118470.0,0.93814756]
[1753301338680,0.64633955,118480.0,118470.0,0.97064756]
[1753301338895,0.64633927,118480.0,118470.0,0.97064756]
[1753301339098,0.16027901,118480.0,118470.0,0.97064756]
[1753301339309,0.16871882,118480.0,118470.0,0.97064756]
[1753301339595,0.16871882,118480.0,118470.0,0.93814756]
[1753301339596,0.17715934,118480.0,118470.0,0.93814756]
[1753301339752,0.16027922,118480.0,118470.0,0.93814756]
[1753301340008,0.16871924,118480.0,118470.0,0.97064756]
[1753301340216,0.4803209,118490.0,118470.0,0.94532506]
[1753301340429,0.35132538,118500.0,118490.0,0.19410826]
[1753301340430,0.15004901,118500.0,118490.0,0.19410826]
[1753301340661,0.15004901,118500.0,118490.0,1.08982324]
[1753301340662,4.901e-05,118500.0,118490.0,1.08982324]
[1753301340892,4.901e-05,118500.0,118490.0,1.51430054]
[1753301341376,0.65408664,118550.0,118490.0,1.51430054]
[1753301341377,0.68239056,118550.0,118540.0,0.18559098]
[1753301341592,0.01691996,118540.0,118530.0,0.19404283]
[1753301341817,0.03379139,118540.0,118530.0,0.19585283]
[1753301342066,0.02535557,118540.0,118530.0,0.19585283]
[1753301342295,0.16875139,118540.0,118530.0,0.19585283]
[1753301342531,0.50875139,118540.0,118530.0,0.19585283]
[1753301342755,0.15187996,118540.0,118530.0,0.55851032]
[1753301342988,0.5087516,118540.0,118530.0,0.55851032]
[1753301343213,0.16875153,118540.0,118530.0,0.54988419]
[1753301343426,0.67003512,118540.0,118530.0,0.54988419]
[1753301343639,0.67847094,118540.0,118530.0,0.54144801]
[1753301343891,0.67301561,118540.0,118530.0,0.54144816]
[1753301344105,0.67508561,118540.0,118530.0,0.54144816]
[1753301344316,0.66665007,118540.0,118530.0,0.54144816]
[1753301345201,0.65821432,118540.0,118530.0,0.54144816]
[1753301345803,0.52325432,118540.0,118530.0,0.54144816]
[1753301346003,0.65817432,118540.0,118530.0,0.54144816]
[1753301346565,0.65817432,118540.0,118530.0,0.53301162]
[1753301346781,0.65817432,118540.0,118530.0,0.35584136]
[1753301346994,0.6497385,118540.0,118530.0,0.35584136]
[1753301347411,1.0497385,118540.0,118530.0,0.35584136]
[1753301347636,0.74609909,118540.0,118530.0,0.55832101]
[1753301347917,1.07504568,118540.0,118530.0,0.54988476]
[1753301348371,1.07504568,118540.0,118530.0,0.5414483]
[1753301348590,0.66661014,118540.0,118530.0,0.35584136]
[1753301348810,0.65817439,118540.0,118530.0,0.35584136]
[1753301351823,0.65817439,118540.0,118530.0,0.35403136]
[1753301356338,0.17717033,118530.0,118520.0,0.21109796]
[1753301356588,0.17717033,118530.0,118520.0,0.5838136]
[1753301357176,0.19404311,118530.0,118520.0,0.59225063]
[1753301357379,0.19404311,118530.0,118520.0,0.5848136]
[1753301357546,0.19404311,118530.0,118520.0,0.6008136]
[1753301358001,0.02530932,118530.0,118520.0,0.60925049]
[1753301358322,0.52862327,118540.0,118530.0,0.18560665]
[1753301358469,0.66350327,118540.0,118530.0,0.54144816]
[1753301358886,0.66350327,118540.0,118530.0,0.54988462]
[1753301359173,0.65506759,118540.0,118530.0,0.00181]
[1753301359432,0.65713759,118540.0,118530.0,0.35584136]
[1753301359645,0.65813759,118540.0,118530.0,0.35584136]
[1753301360387,0.65813759,118540.0,118530.0,0.53301169]
[1753301360609,0.6497017,118540.0,118530.0,0.35584136]
[1753301362530,0.00843668,118530.0,118520.0,0.25827152]
[1753301362753,0.19544033,118530.0,118520.0,0.025488]
[1753301362959,0.19405942,118520.0,118510.0,0.19405133]
[1753301363184,0.34031617,118520.0,118510.0,0.22074694]
[1753301363399,0.33187942,118520.0,118510.0,0.20387123]
[1753301363618,0.33187942,118520.0,118510.0,0.21230905]
[1753301363838,0.33187942,118520.0,118510.0,0.22074672]
[1753301364178,0.33187942,118520.0,118510.0,0.94606236]
[1753301364535,0.33187942,118520.0,118510.0,0.93962476]
[1753301364760,0.33187942,118520.0,118510.0,0.95650018]
[1753301365001,0.15171371,118520.0,118510.0,0.96493778]
[1753301365245,0.16015081,118520.0,118510.0,0.99673778]
[1753301365690,0.16858806,118520.0,118510.0,0.99873778]
[1753301366116,0.17702545,118520.0,118510.0,0.99873778]
[1753301366735,0.16858806,118520.0,118510.0,0.99873778]
[1753301368146,0.32889956,118520.0,118510.0,0.95762476]
[1753301368384,0.33187956,118520.0,118510.0,0.95850011]
[1753301368893,0.16313167,118520.0,118510.0,0.95850011]
[1753301369123,0.16015167,118520.0,118510.0,0.95850011]
[1753301369540,0.33733695,118520.0,118510.0,0.95850011]
[1753301369856,0.74031695,118520.0,118510.0,0.95850018]
[1753301370425,0.74031695,118520.0,118510.0,0.94162476]
[1753301370426,0.73187985,118520.0,118510.0,0.94162476]
[1753301370644,0.33187985,118520.0,118510.0,0.95006258]
[1753301370872,0.33187985,118520.0,118510.0,0.95850033]
[1753301371089,0.33187985,118520.0,118510.0,0.966938]
[1753301371299,0.33187985,118520.0,118510.0,0.94162476]
[1753301373029,0.34987528,118520.0,118510.0,0.39154336]